bitfinex/quotes_SOLUSD_20240902
["timestamp","ask_amount","ask_price","bid_price","bid_amount"]
[1725266887651,13.6749,130.4,130.36,52.6709]
[1725266887941,13.6749,130.4,130.34,45.0]
[1725266889318,13.6749,130.4,130.35,7.6716]
[1725266889539,7.6698,130.39,130.34,52.6722]
[1725266889748,6.0061,130.4,130.34,52.6722]
[1725266889749,13.6748,130.4,130.35,7.6711]
[1725266889926,13.6748,130.4,130.36,52.671]
[1725266890129,13.6748,130.4,130.35,7.6715]
[1725266890336,13.6748,130.4,130.36,45.0]
[1725266891031,13.6748,130.4,130.36,52.671]
[1725266891443,6.0061,130.4,130.37,7.6703]
[1725266891637,6.0061,130.4,130.36,52.671]
[1725266892140,13.6748,130.4,130.36,52.671]
[1725266892723,13.6748,130.4,130.36,45.0]
[1725266893948,16.4023,130.41,130.36,45.0]
[1725266894127,16.4023,130.41,130.37,7.6703]
[1725266894324,16.4023,130.41,130.38,45.0]
[1725266894625,30.7973,130.44,130.37,19.1753]
[1725266894836,30.7973,130.44,130.38,65.0]
[1725266895020,30.7973,130.44,130.39,0.4937447]
[1725266895225,23.1304,130.44,130.4,7.6686]
[1725266895421,23.1304,130.44,130.41,45.0]
[1725266895719,16.5006,130.44,130.41,45.0]
[1725266895944,7.6652,130.46,130.41,52.6681]
[1725266896325,7.6659,130.45,130.41,45.0]
[1725266897240,27.78820814,130.42,130.35,26.8493]
[1725266897554,22.6362,130.44,130.35,46.96590814]
[1725266897745,7.6674,130.43,130.38,7.6697]
[1725266898436,22.6362,130.44,130.38,7.6697]
[1725266898437,30.3026,130.44,130.38,7.6697]
[1725266898634,16.5006,130.44,130.37,27.78820814]
[1725266898833,6.2301,130.47,130.43,26.8331]
[1725266899031,15.9155,130.48,130.44,45.0]
[1725266899733,13.8928,130.51,130.44,45.0]
[1725266899932,13.8928,130.51,130.46,7.6649]
[1725266899933,6.2301,130.51,130.46,7.6649]
[1725266900151,6.2301,130.51,130.47,45.0]
[1725266900333,6.2301,130.51,130.47,52.6644]
[1725266900534,15.9155,130.52,130.49,7.6634]
[1725266900749,7.6609,130.54,130.5,45.0]
[1725266900955,22.8337,130.55,130.51,7.662]
[1725266901150,7.6587,130.57,130.52,45.0]
[1725266902051,16.3441,130.58,130.54,7.6604]
[1725266902250,16.3441,130.58,130.55,45.0]
[1725266902636,14.113,130.59,130.55,45.0]
[1725266903045,6.455,130.59,130.55,45.0]
[1725266904052,6.455,130.59,130.55,52.6598]
[1725266904234,22.7453,130.62,130.55,52.6598]
[1725266904431,7.6566,130.61,130.56,7.6591]
[1725266904652,7.6566,130.61,130.55,45.0]
[1725266904653,7.6565,130.61,130.57,45.0]
[1725266904827,7.6573,130.6,130.54,7.6602]
[1725266905153,7.6573,130.6,130.55,45.0]
[1725266905551,22.7453,130.62,130.55,52.6598]
[1725266905760,22.7453,130.62,130.55,45.0]
[1725266905935,22.7453,130.62,130.54,45.0]
[1725266906139,22.7453,130.62,130.55,20.12549]
[1725266906333,22.7453,130.62,130.56,45.0]
[1725266906855,7.6563,130.61,130.56,52.6589]
[1725266907361,7.6563,130.61,130.56,45.0]
[1725266907849,7.6576,130.59,130.55,20.0]
[1725266908052,7.6569,130.6,130.54,27.6602]
[1725266908255,7.6569,130.6,130.55,7.6598]
[1725266909049,22.7453,130.62,130.55,19.1484]
[1725266909264,30.4014,130.62,130.55,26.8077]
[1725266909431,30.4014,130.62,130.56,45.0]
[1725266909635,30.4014,130.62,130.56,52.6592]
[1725266909865,7.6564,130.61,130.56,52.6592]
[1725266910354,7.6581,130.59,130.56,45.0]
[1725266910549,7.6581,130.59,130.54,20.0]
[1725266910550,7.6581,130.59,130.55,45.0]
[1725266910744,7.6564,130.61,130.55,52.6598]
[1725266911061,7.6564,130.61,130.55,45.0]
[1725266911664,7.6545,130.65,130.59,7.6569]
[1725266911842,7.6545,130.65,130.57,19.1462]
[1725266911843,7.6552,130.63,130.58,7.6581]
[1725266912054,7.6552,130.63,130.59,45.0]
[1725266912369,7.6552,130.63,130.58,7.6581]
[1725266912546,7.6552,130.63,130.59,45.0]
[1725266912864,7.6546,130.64,130.59,45.0]
[1725266913839,22.3931,130.66,130.59,52.6572]
[1725266913840,7.6541,130.65,130.59,52.6572]
[1725266914037,7.6546,130.64,130.59,52.6572]
[1725266915262,7.654,130.65,130.6,7.6569]
[1725266915469,7.654,130.65,130.61,45.0]
[1725266915757,30.0466,130.66,130.61,52.6563]
[1725266916067,22.3931,130.66,130.61,52.6563]
[1725266916366,22.3931,130.66,130.61,45.0]
[1725266916859,7.654,130.65,130.61,45.0]
[1725266919753,7.654,130.65,130.6,7.6569]
[1725266921053,22.3931,130.66,130.63,7.6551]
[1725266921366,22.3931,130.66,130.62,7.6556]
[1725266922063,0.8472365,130.67,130.61,19.14]
[1725266922270,0.8472365,130.67,130.65,7.654]
[1725266922468,0.8472365,130.67,130.66,45.0]
[1725266922673,0.8472365,130.67,130.66,52.6534]
[1725266923357,0.8472365,130.67,130.66,72.6534]
[1725266925155,0.8472365,130.67,130.62,19.1388]
[1725266925347,7.6536,130.66,130.62,19.1388]
[1725266925548,31.3645365,130.67,130.62,26.7943]
[1725266925860,31.3645365,130.67,130.63,7.6551]
[1725266926259,31.3645365,130.67,130.62,26.7944]
[1725266927171,31.3645365,130.67,130.63,45.0]
[1725266927350,23.7116365,130.67,130.61,7.6562]
[1725266928356,7.6541,130.65,130.61,7.6562]
[1725266928678,7.6541,130.65,130.6,7.6568]
[1725266929578,7.6535,130.66,130.61,7.6563]
[1725266930170,31.3645365,130.67,130.62,52.6557]
[1725266930376,23.7116365,130.67,130.62,45.0]
[1725266930568,0.8472365,130.67,130.64,7.6545]
[1725266930886,0.8472365,130.67,130.64,19.1361]
[1725266931173,0.8472365,130.67,130.65,45.0]
[1725266931773,0.8472365,130.67,130.65,52.6538]
[1725266933064,0.8472365,130.67,130.65,45.0]
[1725266935372,0.8472365,130.67,130.64,26.7907]
[1725266936170,0.8472365,130.67,130.65,52.6539]
[1725266937677,0.8472365,130.67,130.65,45.0]
[1725266937984,0.8472365,130.67,130.64,26.7907]
[1725266938362,7.6543,130.65,130.61,19.1402]
[1725266938767,0.8472365,130.67,130.62,7.6555]
[1725266938768,8.5001365,130.67,130.62,7.6555]
[1725266938974,8.5001365,130.67,130.57,38.2908]
[1725266938975,0.8472365,130.67,130.63,19.1373]
[1725266939177,0.8472365,130.67,130.64,7.6545]
[1725266940275,0.8472365,130.67,130.63,19.1373]
[1725266940276,0.8472365,130.67,130.65,7.654]
[1725266940477,0.8472365,130.67,130.66,45.0]
[1725266941592,0.8472365,130.67,130.66,72.6534]
[1725266943474,0.8472365,130.67,130.66,72.77889]
[1725266943995,0.8472365,130.67,130.66,100.55078926]
[1725266948699,16.0488,130.74,130.73,7.6493]
[1725266949000,22.8663,130.77,130.73,52.6493]
[1725266949180,22.8663,130.77,130.73,7.6493]
[1725266949509,30.5133,130.77,130.72,26.7745]
[1725266949802,22.8663,130.77,130.73,52.6492]
[1725266950511,22.8663,130.77,130.73,7.6492]
[1725266950803,30.5133,130.77,130.72,19.1247]
[1725266951182,30.5133,130.77,130.72,26.7743]
[1725266952483,50.51270926,130.77,130.69,19.1285]
[1725266952703,7.6489,130.74,130.69,19.1285]
[1725266953221,7.648,130.76,130.7,7.6505]
[1725266953408,50.51270926,130.77,130.69,19.1285]
[1725266953703,22.8663,130.77,130.71,19.1254]
[1725266954103,22.8663,130.77,130.75,7.6481]
[1725266954406,16.24,130.77,130.75,7.6481]
[1725266954614,8.4925365,130.8,130.76,7.6474]
[1725266954615,15.9891365,130.8,130.76,7.6474]
[1725266954791,15.9891365,130.8,130.76,52.6474]
[1725266956486,15.9891365,130.8,130.73,19.1224]
[1725266956487,23.6343365,130.8,130.75,7.648]
[1725266956928,15.9891365,130.8,130.76,7.6474]
[1725266957209,15.9891365,130.8,130.73,19.1224]
[1725266957409,15.9891365,130.8,130.74,65.0]
[1725266957591,23.6348365,130.8,130.75,7.6481]
[1725266957983,23.6348365,130.8,130.76,45.0]
[1725266958404,23.6348365,130.8,130.76,52.6475]
[1725266958405,15.9891365,130.8,130.76,52.6475]
[1725266958719,15.9891365,130.8,130.77,7.647]
[1725266959225,15.9891365,130.8,130.78,7.6463]
[1725266959706,0.8472365,130.8,130.79,52.6458]
[1725266960217,7.6459,130.79,130.75,7.648]
[1725266960392,0.8472365,130.8,130.75,7.648]
[1725266960892,0.8472365,130.8,130.76,7.6473]
[1725266962095,0.8472365,130.8,130.77,45.0]
[1725266962714,0.8472365,130.8,130.76,7.6473]
[1725266962912,8.4925365,130.8,130.76,7.6473]
[1725266963096,0.8472365,130.8,130.77,45.0]
[1725266963406,0.8472365,130.8,130.77,52.6465]
[1725266963619,0.8472365,130.8,130.78,7.6462]
[1725266964798,0.8472365,130.8,130.79,45.0]
[1725266965618,0.8472365,130.8,130.79,72.6458]
[1725266967504,0.8472365,130.8,130.79,72.77129]
[1725266968407,0.8472365,130.8,130.79,73.40710816]
[1725266968610,0.8472365,130.8,130.79,72.89678]
[1725266969724,0.8472365,130.8,130.79,72.77129]
[1725266969926,0.8472365,130.8,130.79,72.6458]
[1725266971199,0.8472365,130.8,130.79,72.89678]
[1725266971906,0.8472365,130.8,130.79,72.77129]
[1725266972107,0.8472365,130.8,130.79,72.6458]
[1725266972824,0.8472365,130.8,130.79,27.6458]
[1725266973618,0.8472365,130.8,130.79,27.77129]
[1725266974118,0.8472365,130.8,130.79,72.77129]
[1725266976339,0.8472365,130.8,130.79,27.6458]
[1725266977616,0.8472365,130.8,130.78,26.7612]
[1725266979036,0.8472365,130.8,130.79,45.0]
[1725266979209,0.8472365,130.8,130.79,52.6458]
[1725266981629,0.8472365,130.8,130.75,27.64640926]
[1725266981630,24.2328365,130.8,130.75,26.7678]
[1725266981934,24.2328365,130.8,130.76,20.0]
[1725266982916,24.2328365,130.8,130.75,19.1199]
[1725266982917,7.6458,130.79,130.75,19.1199]
[1725266983528,7.6464,130.78,130.75,19.1199]
[1725266984231,7.6464,130.78,130.74,7.6487]
[1725266984431,7.6476,130.76,130.72,19.1241]
[1725266984643,16.3773,130.75,130.69,19.1291]
[1725266984846,16.3773,130.75,130.64,27.64640926]
[1725266984847,7.6499,130.72,130.67,7.6523]
[1725266985237,7.6506,130.71,130.66,26.7866]
[1725266985845,7.6499,130.72,130.66,26.7866]
[1725266986343,7.6499,130.72,130.67,20.0]
[1725266986650,27.64640926,130.73,130.67,20.0]
[1725266986824,7.6506,130.71,130.67,20.0]
[1725266987021,7.6506,130.71,130.66,19.1333]
[1725266987022,7.6511,130.7,130.66,19.1333]
[1725266987526,7.6517,130.69,130.64,7.6545]
[1725266988426,7.6517,130.69,130.63,19.1378]
[1725266988750,27.64640926,130.71,130.63,19.1378]
[1725266988924,7.6514,130.7,130.64,7.6545]
[1725266989352,7.6518,130.69,130.64,7.6545]
[1725266989550,27.64640926,130.71,130.63,19.1378]
[1725266989551,7.6505,130.71,130.65,7.6539]
[1725266989755,15.112,130.72,130.65,7.6539]
[1725266989756,7.6513,130.7,130.65,7.6539]
[1725266989932,14.3181,130.68,130.63,26.7929]
[1725266990248,14.3181,130.68,130.64,20.0]
[1725266990450,6.6658,130.68,130.64,27.6546]
[1725266990844,6.6658,130.68,130.62,7.6552]
[1725266990845,16.4934,130.67,130.62,7.6552]
[1725266991026,16.4934,130.67,130.61,7.6558]
[1725266991341,16.4934,130.67,130.6,19.1422]
[1725266991549,16.4934,130.67,130.61,20.0]
[1725266992467,24.1462,130.67,130.62,7.6557]
[1725266994740,24.1462,130.67,130.61,20.0]
[1725266994741,7.6535,130.66,130.61,20.0]
[1725266994938,7.6535,130.66,130.62,45.0]
[1725266995244,44.13980926,130.67,130.6,26.7991]
[1725266995840,7.654,130.65,130.6,19.1422]
[1725266996039,7.654,130.65,130.6,26.7991]
[1725266996637,7.6546,130.64,130.6,19.1422]
[1725266997049,44.13980926,130.67,130.58,7.6579]
[1725266997050,29.787,130.63,130.58,7.6579]
[1725266997262,22.1318,130.63,130.58,7.6579]
[1725266998066,22.1318,130.63,130.59,7.657]
[1725266998956,22.8621,130.67,130.6,0.12549]
[1725266999148,22.8621,130.67,130.58,66.06199926]
[1725266999149,22.8621,130.67,130.63,7.6546]
[1725266999351,22.8621,130.67,130.64,45.0]
[1725266999539,22.8621,130.67,130.65,7.6535]
[1725266999864,22.8621,130.67,130.61,19.1407]
[1725267000156,22.8621,130.67,130.62,65.0]
[1725267000743,22.8621,130.67,130.63,7.6547]
[1725267002249,22.8621,130.67,130.54,38.3016]
[1725267002443,23.2333,130.63,130.58,19.145]
[1725267002646,23.2333,130.63,130.58,26.803]
[1725267003061,15.5781,130.63,130.58,26.803]
[1725267003462,23.2333,130.63,130.58,26.803]
[1725267004079,15.5781,130.63,130.58,26.803]
[1725267004367,15.5781,130.63,130.59,7.6574]
[1725267004956,15.5781,130.63,130.6,7.6568]
[1725267005346,15.5781,130.63,130.61,52.656]
[1725267005967,15.9539,130.66,130.61,45.0]
[1725267006173,15.9539,130.66,130.62,7.6557]
[1725267006468,15.9539,130.66,130.63,52.655]
[1725267006671,15.9539,130.66,130.63,7.655]
[1725267007173,15.9539,130.66,130.64,52.6541]
[1725267007371,7.6516,130.7,130.64,52.6541]
[1725267008272,21.8626,130.71,130.66,7.6533]
[1725267008470,21.8626,130.71,130.64,45.0]
[1725267008655,21.8626,130.71,130.67,7.6523]
[1725267011171,15.3824,130.71,130.68,45.0]
[1725267011550,15.3824,130.71,130.68,52.6521]
[1725267012268,15.3824,130.71,130.66,19.1324]
[1725267012571,7.6512,130.7,130.63,19.1377]
[1725267012755,7.6518,130.69,130.64,27.6545]
[1725267013078,7.6511,130.7,130.64,27.6545]
[1725267013377,7.6511,130.7,130.65,7.6539]
[1725267013873,23.0329,130.71,130.65,7.6539]
[1725267014081,15.3824,130.71,130.67,7.6526]
[1725267014287,15.3824,130.71,130.68,7.6519]
[1725267014658,15.3824,130.71,130.67,19.1312]
[1725267014659,15.3824,130.71,130.69,52.6516]
[1725267014954,6.6417,130.74,130.7,7.6511]
[1725267015164,14.2907,130.74,130.69,45.0]
[1725267015563,6.6417,130.74,130.69,52.6514]
[1725267015786,6.6417,130.74,130.71,7.6505]
[1725267016348,6.6417,130.74,130.71,7.6504]
[1725267017090,6.6417,130.74,130.72,45.0]
[1725267017984,6.6417,130.74,130.71,52.6504]
[1725267018159,6.6417,130.74,130.72,7.6498]
[1725267018483,29.396,130.78,130.73,7.6493]
[1725267018651,21.7496,130.78,130.73,7.6493]
[1725267018855,21.7496,130.78,130.75,7.648]
[1725267019054,21.7496,130.78,130.76,52.6475]
[1725267019284,0.8472365,130.8,130.76,52.6475]
[1725267020769,0.8472365,130.8,130.76,45.0]
[1725267021257,0.8472365,130.8,130.74,7.6487]
[1725267021462,0.8472365,130.8,130.75,20.0]
[1725267021780,8.4928365,130.8,130.75,20.0]
[1725267023385,8.4928365,130.8,130.75,27.648]
[1725267023573,7.6458,130.79,130.75,20.0]
[1725267024265,8.4925365,130.8,130.75,27.648]
[1725267026085,0.8472365,130.8,130.75,27.648]
[1725267026282,0.8472365,130.8,130.76,45.0]
[1725267028878,0.8472365,130.8,130.76,52.6475]
[1725267029484,0.8472365,130.8,130.77,7.6467]
[1725267029791,0.8472365,130.8,130.76,52.6475]
[1725267034894,27.64640926,130.79,130.72,19.1241]
[1725267035074,7.6477,130.76,130.68,15.0597]
[1725267035274,7.6477,130.76,130.7,7.6506]
[1725267035597,7.6471,130.77,130.69,19.1285]
[1725267035980,7.6471,130.77,130.72,7.6497]
[1725267036392,0.8472365,130.8,130.73,7.6491]
[1725267036594,20.8472365,130.8,130.74,45.0]
[1725267037504,7.6472,130.77,130.72,7.6497]
[1725267037686,7.6472,130.77,130.73,45.0]
[1725267039899,7.6472,130.77,130.72,7.6497]
[1725267042108,7.6476,130.76,130.71,26.776]
[1725267042283,16.0216,130.75,130.72,65.0]
[1725267043309,49.99950926,130.75,130.68,19.1301]
[1725267043488,7.6513,130.7,130.65,7.6539]
[1725267043693,27.64640926,130.73,130.65,19.1344]
[1725267044199,7.6505,130.71,130.65,26.7878]
[1725267045005,7.6505,130.71,130.66,27.6533]
[1725267045183,27.6493,130.74,130.68,7.6521]
[1725267045578,27.6493,130.74,130.67,26.7837]
[1725267045579,7.65,130.72,130.67,26.7837]
[1725267045791,7.6494,130.73,130.68,7.6522]
[1725267045990,7.6494,130.73,130.69,45.0]
[1725267047194,20.0,130.74,130.67,19.131]
[1725267048710,22.3531,130.75,130.69,19.1283]
[1725267048885,22.3531,130.75,130.7,20.0]
[1725267049077,27.64640926,130.78,130.71,45.0]
[1725267049284,16.1006,130.78,130.72,20.0]
[1725267049606,16.1006,130.78,130.73,45.0]
[1725267050013,16.1006,130.78,130.73,64.1223]
[1725267050176,16.1006,130.78,130.73,71.7715]
[1725267050589,23.7471,130.78,130.73,71.7715]
[1725267051012,16.1006,130.78,130.74,7.6486]
[1725267051183,7.6475,130.77,130.72,27.6494]
[1725267051384,16.1006,130.78,130.74,7.6486]
[1725267052707,16.1006,130.78,130.75,45.0]
[1725267053214,0.8472365,130.8,130.75,45.0]
[1725267053411,0.8472365,130.8,130.76,20.0]
[1725267053698,0.8472365,130.8,130.77,45.0]
[1725267053910,0.8472365,130.8,130.77,52.6469]
[1725267054876,0.8472365,130.8,130.7,61.3551]
[1725267054877,28.49364576,130.8,130.74,7.6481]
[1725267055080,28.49364576,130.8,130.75,27.6481]
[1725267055081,7.6463,130.79,130.75,27.6481]
[1725267055691,7.6463,130.79,130.75,20.0]
[1725267056294,7.6463,130.79,130.75,27.6481]
[1725267060017,28.49364576,130.8,130.75,20.0]
[1725267060197,0.8472365,130.8,130.76,52.6475]
[1725267060396,0.8472365,130.8,130.76,7.6475]
[1725267061199,8.4926365,130.8,130.75,19.1194]
[1725267061714,8.4926365,130.8,130.75,26.7674]
[1725267062597,0.8472365,130.8,130.76,7.6475]
[1725267062804,0.8472365,130.8,130.76,52.6475]
[1725267063721,8.4925365,130.8,130.75,19.1194]
[1725267065413,8.4925365,130.8,130.75,26.7674]
[1725267065619,8.4925365,130.8,130.77,7.6469]
[1725267065620,0.8472365,130.8,130.77,7.6469]
[1725267065842,0.8472365,130.8,130.76,45.0]
[1725267066029,0.8472365,130.8,130.79,7.6458]
[1725267069110,0.8472365,130.8,130.79,52.6458]
[1725267071512,0.8472365,130.8,130.76,7.6475]
[1725267072292,0.8472365,130.8,130.78,7.6463]
[1725267072513,8.4927365,130.8,130.75,19.1198]
[1725267072705,8.4927365,130.8,130.75,26.7679]
[1725267075025,0.8472365,130.8,130.76,7.6473]
[1725267075525,8.4924365,130.8,130.76,7.6473]
[1725267076215,8.4924365,130.8,130.75,26.7678]
[1725267076418,28.49364576,130.8,130.72,19.1243]
[1725267076725,28.49364576,130.8,130.73,20.0]
[1725267077099,28.49364576,130.8,130.74,7.6487]
[1725267077725,7.6459,130.79,130.75,52.6481]
[1725267077929,28.49364576,130.8,130.75,52.6481]
[1725267077930,36.13894576,130.8,130.75,52.6481]
[1725267078834,28.49364576,130.8,130.73,27.6491]
[1725267080117,28.49364576,130.8,130.69,19.1288]
[1725267080118,27.64640926,130.78,130.69,19.1288]
[1725267080315,7.6487,130.74,130.69,26.7804]
[1725267080528,6.2201,130.73,130.66,19.1334]
[1725267080740,16.4105,130.71,130.66,19.1334]
[1725267082108,6.2201,130.73,130.62,27.64640926]
[1725267082307,6.2201,130.73,130.69,7.6516]
[1725267082736,15.8943,130.74,130.66,43.49950926]
[1725267082927,6.1914,130.76,130.73,7.6493]
[1725267083105,6.1914,130.76,130.72,19.1246]
[1725267083306,6.1914,130.76,130.73,45.0]
[1725267083529,6.1914,130.76,130.73,52.6492]
[1725267084209,15.5281,130.77,130.73,52.6492]
[1725267084915,15.5281,130.77,130.74,7.6487]
[1725267085120,15.5281,130.77,130.75,52.6481]
[1725267085332,15.5281,130.77,130.75,7.6481]
[1725267085733,15.5281,130.77,130.76,26.7664]
[1725267085940,6.0021,130.79,130.76,26.7664]
[1725267087014,16.0161365,130.8,130.76,19.1189]
[1725267087015,0.8472365,130.8,130.76,19.1189]
[1725267087327,0.8472365,130.8,130.77,45.0]
[1725267087641,0.8472365,130.8,130.78,7.6464]
[1725267087827,0.8472365,130.8,130.79,45.0]
[1725267088943,0.8472365,130.8,130.78,7.6464]
[1725267089430,0.8472365,130.8,130.77,27.6469]
[1725267089735,0.8472365,130.8,130.76,19.1189]
[1725267090442,0.8472365,130.8,130.76,26.7664]
[1725267091022,0.8472365,130.8,130.77,52.6465]
[1725267094541,0.8472365,130.8,130.76,26.7663]
[1725267095920,0.8472365,130.8,130.77,7.647]
[1725267097642,0.8472365,130.8,130.78,7.6463]
[1725267098941,0.8472365,130.8,130.79,7.6458]
[1725267099139,0.8472365,130.8,130.79,45.0]
[1725267099318,0.8472365,130.8,130.79,7.6458]
[1725267099946,0.8472365,130.8,130.76,19.1189]
[1725267100258,0.8472365,130.8,130.77,20.0]
[1725267100624,0.8472365,130.8,130.77,27.6469]
[1725267102629,0.8472365,130.8,130.78,7.6463]
[1725267104223,0.8472365,130.8,130.79,7.6458]
[1725267104456,0.8472365,130.8,130.79,72.6458]
[1725267104661,0.8472365,130.8,130.79,27.6458]
[1725267106229,0.8472365,130.8,130.79,7.6458]
[1725267106440,0.8472365,130.8,130.79,27.6458]
[1725267107354,0.8472365,130.8,130.79,20.0]
[1725267107726,0.8472365,130.8,130.79,27.6458]
[1725267111645,0.8472365,130.8,130.79,72.6458]
[1725267117664,0.8472365,130.8,130.79,73.57337204]
[1725267118548,0.8472365,130.8,130.79,72.6458]
[1725267120751,0.8472365,130.8,130.79,27.6458]
[1725267122151,0.8472365,130.8,130.79,72.6458]
[1725267123369,0.8472365,130.8,130.79,72.77129]
[1725267124262,0.8472365,130.8,130.79,72.89678]
[1725267124768,3.65e-05,130.8,130.79,72.89678]
[1725267124945,21.4735,130.91,130.89,26.7396]
[1725267125259,21.4735,130.91,130.89,19.0998]
[1725267125864,21.4735,130.91,130.88,7.6405]
[1725267127242,21.4735,130.91,130.89,7.6394]
[1725267127441,21.4735,130.91,130.9,7.6394]
[1725267131858,0.8472365,130.93,130.9,7.6394]
[1725267134042,0.8472365,130.93,130.88,19.1004]
[1725267134043,28.49364576,130.93,130.88,19.1004]
[1725267134244,36.13134576,130.93,130.88,19.1004]
[1725267134466,0.8472365,130.93,130.89,7.6397]
[1725267134680,0.8472365,130.93,130.91,7.6384]
[1725267135088,0.8472365,130.93,130.9,26.7368]
[1725267138403,0.8472365,130.93,130.91,27.6383]
[1725267138972,0.8472365,130.93,130.91,20.0]
[1725267139784,0.8472365,130.93,130.92,7.6382]
[1725267139965,0.8472365,130.93,130.92,27.6382]
[1725267140484,0.8472365,130.93,130.92,72.6382]
[1725267140682,0.8472365,130.93,130.92,72.76369]
[1725267140990,6.306,131.01,130.99,7.6341]
[1725267142168,50.71088504,131.06,131.0,19.0825]
[1725267142372,23.2133365,131.06,131.01,20.0]
[1725267142585,50.71088504,131.06,131.0,19.0825]
[1725267142895,7.6318,131.03,130.98,7.6347]
[1725267144093,27.49754854,131.04,130.97,19.0881]
[1725267144383,21.9683,131.01,130.97,19.0881]
[1725267144589,21.9683,131.01,130.97,26.7234]
[1725267144771,21.9683,131.01,130.98,7.6346]
[1725267144971,21.9683,131.01,130.97,19.0881]
[1725267145181,15.9306,131.01,130.99,7.6341]
[1725267145485,41.16704854,131.04,131.0,20.0]
[1725267145691,6.0377,131.04,131.0,20.0]
[1725267146067,6.0377,131.04,131.0,27.6334]
[1725267146388,6.0377,131.04,131.0,46.7173]
[1725267148582,7.6341,130.99,130.94,7.6366]
[1725267148966,35.13104854,131.0,130.94,26.7289]
[1725267149391,7.6344,130.99,130.94,26.7289]
[1725267149795,7.6347,130.98,130.94,19.0923]
[1725267150177,7.6347,130.98,130.89,87.68194854]
[1725267150178,7.6354,130.97,130.92,7.6382]
[1725267151585,27.49754854,130.98,130.93,7.6375]
[1725267152297,27.49754854,130.98,130.92,7.6381]
[1725267152607,7.6353,130.97,130.92,7.6381]
[1725267152778,7.6353,130.97,130.93,20.0]
[1725267153699,7.6345,130.99,130.94,7.6367]
[1725267153998,7.6349,130.98,130.93,7.6373]
[1725267154904,7.6406,130.88,130.83,7.6434]
[1725267155073,7.64,130.89,130.83,7.6429]
[1725267155280,27.49754854,130.92,130.82,19.11]
[1725267155281,27.49754854,130.88,130.82,19.11]
[1725267155473,22.9049,130.87,130.82,19.11]
[1725267155903,22.9049,130.87,130.82,26.7539]
[1725267156307,7.6435,130.83,130.78,19.1153]
[1725267156473,7.6435,130.83,130.76,7.6474]
[1725267156474,7.6446,130.82,130.76,7.6474]
[1725267156673,27.49754854,130.83,130.76,7.6474]
[1725267157273,35.14114854,130.83,130.77,7.6467]
[1725267158300,7.6427,130.85,130.77,7.6467]
[1725267158601,7.6427,130.85,130.76,19.118]
[1725267158602,7.6429,130.84,130.78,7.6462]
[1725267159369,27.49754854,130.85,130.79,27.6457]
[1725267160581,35.13994854,130.85,130.79,27.6457]
[1725267161484,35.13994854,130.85,130.79,20.0]
[1725267161683,35.13994854,130.85,130.78,27.6462]
[1725267162202,35.13994854,130.85,130.79,7.6458]
[1725267166384,58.04414854,130.87,130.8,20.0]
[1725267166588,58.04414854,130.87,130.81,7.6446]
[1725267166782,7.6418,130.86,130.81,7.6446]
[1725267166984,27.49754854,130.83,130.77,7.6469]
[1725267167299,27.49754854,130.81,130.76,26.7662]
[1725267167695,7.6446,130.82,130.76,26.7662]
[1725267168422,7.6446,130.82,130.77,20.0]
[1725267169589,7.6446,130.82,130.77,27.6469]
[1725267169903,15.6435,130.81,130.77,20.0]
[1725267170114,6.0287,130.8,130.77,20.0]
[1725267170312,27.49754854,130.79,130.74,7.6485]
[1725267170809,7.6466,130.78,130.73,7.6492]
[1725267172110,7.6476,130.76,130.72,19.1239]
[1725267172299,7.6476,130.76,130.71,7.65]